[Event "New York Spring GM-A 2022"]
[Site "New York"]
[Date "2022.04.17"]
[Round "6.5"]
[White "Song, Edward"]
[Black "Ostrovskiy, Aleksandr"]
[Result "1/2-1/2"]
[ECO "B12"]
[WhiteElo "2383"]
[BlackElo "2409"]
[Annotator "TA"]
[PlyCount "86"]
[EventDate "2022.04.14"]
[EventType "tourn"]
[EventCountry "USA"]
[SourceTitle "playchess.com"]
[Source "ChessBase"]
[SourceQuality "1"]
[TimeControl "5400+30"]

{[%evp 9,86,16,20,14,14,14,14,13,15,18,17,8,18,24,13,17,18,1,3,16,14,13,10,0,0,0,0,0,0,-27,0,-14,0,-3,42,-7,-15,-17,0,0,0,-22,-28,-29,-13,-17,0,0,0,-8,-8,-10,0,-8,0,0,31,34,29,33,24,0,0,0,0,0,39,0,0,-375,-375,-353,0,0,0,-298,0,0,0]} 1. e4 {[%emt 0:00:02]} c6 {[%emt 0:08:23]} 2. d4 {[%emt 0:00:06]} d5 {[%emt 0:00:04]} 3. e5 {[%emt 0:00:05]} c5 {[%emt 0:00:05]} 4. Nf3 {[%emt 0:00:11]} cxd4 {[%emt 0:00:51]} 5. Nxd4 {[%emt 0:00:06]} Nc6 {[%emt 0:00:06]} 6. Nxc6 {[%emt 0:00:40] B12: Caro-Kann: Advance Variation.} bxc6 {[%emt 0:00:04]} 7. Bd3 {[%emt 0:00:08]} e6 {[%emt 0:00:12]} 8. O-O {[%emt 0:00:05]} Ne7 {[%emt 0:00:25]} 9. Nd2 {[%emt 0:02:49]} a5 {[%emt 0:00:59]} 10. Nf3 {[%emt 0:02:51]} Ba6 {[%emt 0:09:34]} 11. Bxa6 {[%emt 0:01:30]} Rxa6 {[%emt 0:00:11]} 12. c4 {[%emt 0:01:03]} dxc4 {[%emt 0:12:30] [#]} 13. Qa4 $146 {[%emt 0:21:05]} ({Predecessor:} 13. Nd2 Qd5 14. Qc2 Ng6 15. Nxc4 Nxe5 16. Nxe5 Qxe5 17. Qd3 Ra8 18. Rd1 Qd5 19. Qe2 {1-0 (30) Dragnev,V (2533)-Kraus,T (2477) Vienna 2022}) 13... Qd5 {[%emt 0:09:08]} 14. Be3 {[%emt 0:24:05]} Qb5 {[%emt 0:05:06]} 15. Qc2 {[%emt 0:01:09]} Nd5 {[%emt 0:06:42]} 16. Bd4 {[%emt 0:03:21]} Be7 {[%emt 0:06:21]} 17. Nd2 {[%emt 0:09:34]} a4 {[%emt 0:05:11]} 18. Nxc4 {[%emt 0:07:46]} O-O {[%emt 0:01:11]} 19. a3 {[%emt 0:00:55]} Rb8 {[%emt 0:04:37]} 20. Rab1 {[%emt 0:00:34]} h6 {[%emt 0:05:28]} 21. Rfd1 {[%emt 0:00:16]} Raa8 {[%emt 0:03:19]} (21... c5 $5 22. Be3 Ra7 $11) 22. g3 {[%emt 0:05:47]} (22. Nd6 $14 {should be considered.} Bxd6 23. exd6) 22... Rd8 $11 {[%emt 0:03:22]} 23. Rd3 {[%emt 0:07:07]} c5 {[%emt 0:03:17]} 24. Be3 {[%emt 0:00:09]} Nxe3 {[%emt 0:00:23]} 25. Rxe3 {[%emt 0:00:43]} Rd4 {[%emt 0:00:29]} 26. Rc3 {[%emt 0:00:17]} Rad8 {[%emt 0:03:05]} 27. b3 {[%emt 0:03:07]} axb3 {[%emt 0:00:21]} 28. Qxb3 {[%emt 0:00:34]} Qc6 {[%emt 0:00:54]} 29. Qc2 {[%emt 0:00:48]} h5 {[%emt 0:02:38]} 30. h4 $1 {[%emt 0:02:48]} Qd5 {[%emt 0:04:47]} 31. a4 {[%emt 0:01:52] [#]} Bxh4 $1 {[%emt 0:03:37] And now ...Bg5 would win.} 32. Ne3 {[%emt 0:02:34]} (32. a5 Be7) 32... Qa8 {[%emt 0:01:56]} 33. gxh4 {[%emt 0:01:04]} Rxh4 {[%emt 0:00:23][%csl Ga8][%cal Rh4h1]} 34. Ng2 {[%emt 0:00:17]} Rxa4 {[%emt 0:00:18]} 35. Rh3 {[%emt 0:01:17]} Rg4 {[%emt 0:01:04][%csl Gg4][%cal Ra8g2] [#]} 36. f3 {[%emt 0:00:40]} Rgd4 {[%emt 0:00:45]} 37. Rxh5 {[%emt 0:00:56] Black must now prevent Qh7+.} g6 {[%emt 0:00:40]} 38. Rg5 {[%emt 0:00:35][%cal Og5g6] Strongly threatening Rxg6+!} Qxf3 {[%emt 0:01:04] aiming for ...Rd2.} 39. Rxg6+ $2 {[%emt 0:00:29][%mdl 8192]} fxg6 $19 {[%emt 0:00:00]} 40. Qxg6+ {[%emt 0:00:01]} Kh8 {[%emt 0:00:27] Hoping for ...Rd1+.} 41. Qh6+ {[%emt 0:00:09]} Kg8 {[%emt 0:00:00] Threatens to win with ...Rd1+.} 42. Qg6+ {[%emt 0:00:00]} Kh8 $2 {[%emt 0:00:01]} ({Black should try} 42... Kf8 $19 {...Rd1+ is the strong threat.} 43. Rf1 Rd1) 43. Qh6+ $11 {[%emt 0:00:29]} Kg8 {[%emt 0:00:08] Weighted Error Value: White=0.21 (precise) /Black=0.26 (precise)} 1/2-1/2

[Event "New York Spring GM-A 2022"]
[Site "New York"]
[Date "2022.04.18"]
[Round "7.1"]
[White "Ostrovskiy, Aleksandr"]
[Black "Belous, Vladimir"]
[Result "0-1"]
[ECO "B42"]
[WhiteElo "2409"]
[BlackElo "2516"]
[Annotator "TA"]
[PlyCount "65"]
[EventDate "2022.04.14"]
[EventType "tourn"]
[EventCountry "USA"]
[SourceTitle "playchess.com"]
[Source "ChessBase"]
[SourceQuality "1"]
[TimeControl "5400+30"]

{[%evp 14,65,29,31,57,34,61,31,35,0,36,9,48,0,7,0,3,-19,-31,-30,-20,-16,-11,-39,-22,-20,-19,-22,-35,-30,-21,-57,0,-6,-16,-141,-142,-171,-181,-291,-179,-189,-204,-188,-186,-192,-192,-1190,-1117,-1642,-1726,-1717,-1688,-29993]} 1. e4 {[%emt 0:06:25]} c5 {[%emt 0:00:16]} 2. Nf3 {[%emt 0:00:05]} e6 {[%emt 0:00:05]} 3. d4 {[%emt 0:00:44]} cxd4 {[%emt 0:00:11]} 4. Nxd4 {[%emt 0:00:19]} a6 {[%emt 0:00:01]} 5. Bd3 {[%emt 0:04:38]} Bc5 {[%emt 0:03:10]} 6. Nb3 {[%emt 0:00:46]} Ba7 {[%emt 0:00:10]} 7. Qe2 {[%emt 0:01:10] 7.Qe2 scores better than 7.0-0.} Nc6 {[%emt 0:00:18]} 8. Be3 {[%emt 0:00:35]} Nf6 {[%emt 0:01:09] B42: Sicilian: Kan Variation: 5 Bd3.} 9. Nc3 {[%emt 0:05:32]} Qc7 {[%emt 0:01:43]} 10. O-O-O {[%emt 0:07:30] [#]} O-O $146 {[%emt 0:01:33] White is slightly better.} ({Predecessor:} 10... b5 11. f4 b4 12. Nd5 exd5 13. exd5 O-O 14. Bxa7 Nxa7 15. d6 Qb6 16. g4 Bb7 {1-0 (41) Erdogdu,M (2396)-Ozdemir,S (2191) Chess.com INT 2021}) 11. Kb1 {[%emt 0:00:56]} b5 {[%emt 0:01:02]} 12. f4 {[%emt 0:08:34] With the idea e5.} Bxe3 {[%emt 0:06:51]} 13. Qxe3 {[%emt 0:01:58] Strongly threatening e5.} (13. e5 $5 {[%cal Re5f6]}) 13... d6 {[%emt 0:00:05] Against e5} 14. g4 {[%emt 0:06:39]} b4 {[%emt 0:01:40]} 15. Na4 {[%emt 0:06:01]} (15. g5 Ng4 16. Qe1 bxc3 $17) 15... Nxg4 {[%emt 1:19:46]} 16. Qg3 {[%emt 0:01:28]} f5 {[%emt 0:00:00]} 17. exf5 {[%emt 0:02:36]} exf5 {[%emt 0:00:00]} 18. Rhg1 {[%emt 0:04:10]} (18. Rhe1 $5 {[%cal Rd3c4]}) 18... Kh8 {[%emt 0:00:00]} 19. h3 {[%emt 0:17:51]} Nf6 {[%emt 0:00:00]} 20. Nb6 $1 {[%emt 0:00:11]} Ra7 {[%emt 0:00:00]} 21. Nxc8 {[%emt 0:00:24]} Qxc8 {[%emt 0:00:00]} 22. Qg5 {[%emt 0:06:35]} a5 {[%emt 0:00:00]} (22... g6 $15) 23. Bxf5 $11 {[%emt 0:01:26]} Qc7 {[%emt 0:00:00] aiming for ...a4.} 24. Nd2 {[%emt 0:07:49]} (24. Qg2 $11) 24... Nd4 $17 {[%emt 0:00:00] Hoping for ...a4.} 25. Bd3 {[%emt 0:02:58]} a4 $1 {[%emt 0:00:00][%cal Ba5a4,Ba4b3][%mdl 32]} 26. Rg3 {[%emt 0:02:15]} (26. Qg2 $142) 26... b3 {[%emt 0:00:00]} 27. cxb3 {[%emt 0:01:33]} axb3 {[%emt 0:00:00]} 28. a3 {[%emt 0:00:49]} (28. Nxb3 $2 Nxb3 29. axb3 Rfa8 $19) 28... Rc8 $1 {[%emt 0:00:00][%cal Oc7c2] Dancing on a razor blade.} 29. Rgg1 {[%emt 0:00:51] [#]} Ne2 {[%emt 0:00:00] Against Rc1. Pair of Knights!} 30. Rge1 $2 {[%emt 0:01:37] [#]} (30. Bxe2 $2 {is a self mate.} Qc2+ 31. Ka1 {[#]} Rxa3+ $3 {[%mdl 512]} 32. bxa3 Qa2#) (30. Qxg7+ Qxg7 31. Rxg7 Nc3+ 32. bxc3 Rxg7 33. c4) 30... Rxa3 $3 $19 {[%emt 0:00:00][%cal Ba7a3,Ba3a4,Ba4c4][%mdl 544] Black is clearly winning.} 31. Nc4 {[%emt 0:00:25]} (31. bxa3 Nc3+) 31... Ra4 {[%emt 0:00:00][%cal Oc7a7] ( -> ...Qa7!)} ({Stronger than} 31... h6 32. Qb5 (32. Qh4 $2 Ra4 $19) 32... Nd4 33. Qb6 $17) 32. Rxe2 {[%emt 0:00:32]} Rxc4 {[%emt 0:00:00]} 33. Qg1 {[%emt 0:01:38] Weighted Error Value: White=0.70/Black=0.12 (very precise)} 0-1

[Event "New York Spring GM-A 2022"]
[Site "New York"]
[Date "2022.04.18"]
[Round "7.2"]
[White "Wang, Kevin"]
[Black "Song, Edward"]
[Result "1-0"]
[ECO "B22"]
[WhiteElo "2389"]
[BlackElo "2383"]
[Annotator "TA"]
[PlyCount "123"]
[EventDate "2022.04.14"]
[EventType "tourn"]
[EventCountry "USA"]
[SourceTitle "playchess.com"]
[Source "ChessBase"]
[SourceQuality "1"]
[TimeControl "5400+30"]

{[%evp 14,123,0,0,0,0,0,1,0,0,0,0,0,0,47,56,56,21,54,60,87,54,129,0,129,122,116,88,88,91,106,102,96,82,78,92,236,200,220,145,146,144,158,158,160,165,164,164,171,171,171,171,171,171,170,165,181,189,231,185,259,268,247,181,320,320,320,320,320,320,322,329,302,286,280,257,318,306,625,521,346,346,346,266,1630,1604,1574,1159,1438,2067,4727,4610,4614,1781,614,16,29967,29968,29967,12840,29976,29977,29977,29978,29978,29980,29980,29981,29981,29982,29983,29984]} 1. e4 {[%emt 0:00:18][%cal Be2e4,Be4e5][%mdl 32]} c5 {[%emt 0:00:08]} 2. c3 {[%emt 0:00:39]} Nf6 {[%emt 0:00:23]} 3. e5 {[%emt 0:00:18]} Nd5 {[%emt 0:00:05]} 4. Nf3 {[%emt 0:00:13]} d6 {[%emt 0:00:25]} 5. d4 {[%emt 0:00:26]} cxd4 {[%emt 0:00:22]} 6. cxd4 {[%emt 0:00:18]} dxe5 {[%emt 0:00:44]} 7. dxe5 {[%emt 0:00:14]} Nc6 {[%emt 0:00:05]} 8. Bc4 {[%emt 1:32:04]} Be6 {[%emt 0:02:26][%cal Od5e3] [#] B22: Sicilian: 2 c3.} 9. Nbd2 $146 {[%emt 0:00:00]} ({Predecessor:} 9. O-O g6 10. Ng5 Bg7 11. Nxe6 fxe6 12. Nc3 Nxe5 13. Bxd5 exd5 14. Nxd5 e6 15. Qa4+ Kf7 16. Nf4 {½-½ (36) Harika,D (2511)-Shankland,S (2708) Kolkata 2021}) 9... g6 {[%emt 0:13:36]} 10. Ng5 {[%emt 0:00:00]} Bg7 {[%emt 0:15:18] The position is equal.} 11. Nxe6 {[%emt 0:00:00]} fxe6 {[%emt 0:00:05]} 12. O-O {[%emt 0:00:00]} O-O {[%emt 0:17:00]} 13. Nf3 {[%emt 0:00:00]} Qd7 {[%emt 0:12:15]} (13... Nxe5 $11 14. Nxe5 Bxe5) 14. Re1 $14 {[%emt 0:00:00]} Rad8 {[%emt 0:01:49]} 15. Qe2 {[%emt 0:00:00]} Rf5 {[%emt 0:17:04]} 16. Bb5 {[%emt 0:00:00]} Rdf8 {[%emt 0:04:30][%cal Of5f3]} 17. Bd2 {[%emt 0:00:00]} Qc7 {[%emt 0:04:42]} ({Black should play} 17... Rxf3 $1 $14 18. gxf3 Rf5) 18. Rac1 {[%emt 0:00:00]} (18. Bxc6 $16 bxc6 19. Rac1) 18... Qb6 {[%emt 0:00:17]} (18... Rxf3 $1 $11 19. gxf3 Nd4 $1 20. Rxc7 Nxe2+ 21. Bxe2 Nxc7) 19. Bxc6 $16 {[%emt 0:00:00]} bxc6 {[%emt 0:00:01]} 20. b3 {[%emt 0:00:00]} Bxe5 {[%emt 0:05:37][%cal Of8f6]} 21. Rc4 {[%emt 0:00:00]} (21. Nxe5 $2 Rxf2 22. Be3 Nxe3 23. Qxf2 (23. Qxe3 $2 Rf1+ 24. Rxf1 Qxe3+ $19) 23... Rxf2 24. Kxf2 Nc2+ 25. Kf3 Qa5 $1 26. Rxc2 (26. Re4 $2 Qd2 $19) 26... Qxe1 $19) 21... R8f6 {[%emt 0:01:11]} 22. Bg5 {[%emt 0:00:00]} (22. Nxe5 $2 Rxf2 23. Kh1 Rxe2 $19) 22... Rf7 {[%emt 0:00:45]} 23. Rec1 {[%emt 0:00:00]} ({But not} 23. Nxe5 $2 Rxf2 24. Be3 Rxe2 $19) 23... Bf4 {[%emt 0:02:23]} 24. Rxc6 {[%emt 0:00:00]} Qa5 {[%emt 0:00:26]} (24... Qb7 $16 25. Bxf4 (25. Rc8+ Kg7 $11) 25... Nxf4) 25. Rc8+ {[%emt 0:00:00]} Kg7 {[%emt 0:00:04]} 26. Qb2+ {[%emt 0:00:00]} e5 {[%emt 0:01:49] [#]} 27. R8c5 $1 {[%emt 0:04:39] &Bianco is more active.} Qd8 {[%emt 0:00:00] [#]} (27... Bxc1 $2 28. Qxc1 Qxa2 29. Bh6+ Kg8 30. Rxd5 Qxb3 31. Rc5 $18) (27... Qb4 28. Rxd5) 28. Rd1 $1 {[%emt 0:01:03]} Bxg5 {[%emt 0:00:07]} (28... Qb6 29. Rdxd5) 29. Rdxd5 {[%emt 0:00:09]} Qb6 {[%emt 0:00:33]} 30. Nxg5 {[%emt 0:01:16]} ({Weaker is} 30. Rxe5 Bf6 31. Qc3 Qd6 $17) 30... Rxg5 {[%emt 0:00:20]} 31. Rxe5 {[%emt 0:00:28]} Rxe5 {[%emt 0:00:32]} 32. Qxe5+ {[%emt 0:00:46]} Qf6 {[%emt 0:00:16]} 33. Qxf6+ {[%emt 0:00:30]} exf6 $18 {[%emt 0:00:39][%mdl 4096] Endgame KR-KR} 34. g4 {[%emt 0:00:39]} Rd7 {[%emt 0:00:57]} 35. Ra5 {[%emt 0:00:13]} g5 {[%emt 0:00:31]} 36. Ra6 {[%emt 0:00:58]} Re7 {[%emt 0:00:25]} (36... h5 {is a better defense.} 37. gxh5 Rf7) 37. Kg2 {[%emt 0:00:14]} Kg6 {[%emt 0:00:05]} 38. Kf3 {[%emt 0:00:31]} Kf7 {[%emt 0:00:03]} (38... Rf7 {was necessary.} 39. Kg2 h5) 39. b4 {[%emt 0:00:17][%cal Bb3b4,Bb4b5][%mdl 32]} Kg6 {[%emt 0:00:31]} 40. a4 {[%emt 0:00:18]} Kf7 {[%emt 0:00:08]} 41. b5 {[%emt 0:00:06]} Kg6 {[%emt 0:00:21]} 42. Rc6 {[%emt 0:01:33]} Kf7 {[%emt 0:01:20]} 43. a5 {[%emt 0:00:52]} Re5 {[%emt 0:01:09]} 44. b6 {[%emt 0:01:31]} axb6 {[%emt 0:00:32]} 45. axb6 {[%emt 0:00:07]} Kg6 $2 {[%emt 0:00:28]} (45... h6 46. Rc8 Rb5) 46. b7 {[%emt 0:01:49]} Rb5 {[%emt 0:00:01]} 47. Rc7 {[%emt 0:00:01] Hoping for Ke4.} Rb4 {[%emt 0:00:55]} 48. Ke3 {[%emt 0:00:12]} h5 $2 {[%emt 0:00:09]} (48... f5 49. Kd2 fxg4) 49. gxh5+ {[%emt 0:00:36]} Kxh5 {[%emt 0:01:28]} 50. Kd3 {[%emt 0:00:05] Black must now prevent Kc3.} f5 {[%emt 0:00:00]} 51. Kc3 {[%emt 0:00:01]} Rb1 {[%emt 0:00:00]} 52. Kd4 {[%emt 0:00:26] Kd5 would kill now.} Kg4 {[%emt 0:00:11]} 53. Kd5 {[%emt 0:00:47] Intending Kc6 and mate.} Kf3 {[%emt 0:00:52]} 54. Kc6 $2 {[%emt 0:01:06]} (54. Rg7 $1 $18) 54... f4 $2 {[%emt 0:00:54][%mdl 8192] [#]} (54... Kxf2 $11 55. Rg7 Rc1+ 56. Kd7 Rd1+ 57. Kc8 Rc1+ 58. Rc7 Rb1) 55. Rg7 $1 {[%emt 0:00:29]} Rc1+ {[%emt 0:00:30]} 56. Kd7 {[%emt 0:00:10]} (56. Kb6 $142 Rb1+ 57. Kc6 Rc1+ 58. Kd7 Rb1 59. Kc8 Re1 60. Rd7 Rc1+ 61. Rc7) 56... Rb1 {[%emt 0:00:25]} 57. Kc8 {[%emt 0:00:01] White mates.} Rc1+ {[%emt 0:00:26]} 58. Rc7 {[%emt 0:00:53]} Rb1 {[%emt 0:00:03]} 59. b8=Q {[%emt 0:02:44]} Rxb8+ {[%emt 0:00:03]} 60. Kxb8 {[%emt 0:00:00]} Kxf2 {[%emt 0:02:06] [#]} 61. Rg7 $1 {[%emt 0:00:00]} Kg2 {[%emt 0:00:00]} 62. h4 $1 {[%emt 0:00:00] Weighted Error Value: White=0.28 (precise) /Black=0.47} 1-0

[Event "New York Spring GM-A 2022"]
[Site "New York"]
[Date "2022.04.18"]
[Round "7.3"]
[White "Nagy, Gabor"]
[Black "Korley, Kassa"]
[Result "1-0"]
[ECO "E14"]
[WhiteElo "2530"]
[BlackElo "2399"]
[Annotator "TA"]
[PlyCount "143"]
[EventDate "2022.04.14"]
[EventType "tourn"]
[EventCountry "USA"]
[SourceTitle "playchess.com"]
[Source "ChessBase"]
[SourceQuality "1"]
[TimeControl "5400+30"]

{[%evp 19,143,14,17,0,0,0,1,0,-5,-12,-16,-20,0,-20,12,9,19,0,0,0,2,0,22,31,100,34,60,15,12,0,0,0,0,0,0,0,0,0,0,0,0,0,0,0,0,0,180,184,190,182,182,202,192,0,0,-14,-44,-34,-31,-18,0,0,0,0,0,0,0,-6,-6,-8,0,0,130,63,268,264,782,766,900,861,979,970,962,858,856,820,871,465,584,455,580,565,702,694,949,949,949,862,914,919,786,778,748,748,1003,1000,966,791,12339,7071,29968,29967,29973,29973,29971,29970,29968,1929,29984,29984,29986,29987,29988,29989,29989,29990]} 1. c4 {[%emt 0:00:16]} e6 {[%emt 0:00:10]} 2. Nf3 {[%emt 0:00:41]} d5 {[%emt 0:00:04]} 3. e3 {[%emt 0:00:15]} Nf6 {[%emt 0:00:06]} 4. Nc3 {[%emt 0:00:13]} Be7 {[%emt 0:00:09]} 5. b3 {[%emt 0:00:39]} O-O {[%emt 0:00:26]} 6. Bb2 {[%emt 0:00:14]} b6 {[%emt 0:04:04]} 7. cxd5 {[%emt 0:00:18]} exd5 {[%emt 0:00:09]} 8. d4 {[%emt 0:00:35]} Bb7 {[%emt 0:00:17]} 9. Bd3 {[%emt 0:00:12]} Nbd7 {[%emt 0:01:45]} 10. O-O {[%emt 0:00:25]} a6 {[%emt 0:06:44] The main line 10...a6 scores better than 10...Re8.} 11. Rc1 {[%emt 0:01:32] E14: Queen's Indian: Classical Variation (4 e3).} (11. Ne5 {looks sharper.} Bd6 12. f4 Ne4 13. Rc1) 11... Bd6 {[%emt 0:00:16]} 12. Ne2 {[%emt 0:00:19]} Re8 {[%emt 0:01:08]} 13. Ng3 {[%emt 0:00:26] The position is equal.} g6 {[%emt 0:01:53]} 14. Qc2 {[%emt 0:01:00]} Rc8 {[%emt 0:00:25]} 15. Qe2 {[%emt 0:00:21]} Ra8 {[%emt 0:02:01]} 16. Rc2 {[%emt 0:01:26] [#]} h5 $146 {[%emt 0:10:32]} ({Predecessor:} 16... Qe7 17. Rfc1 Rec8 18. Qe1 Ne4 19. Bf1 Nxg3 20. hxg3 Nf6 21. Ne5 c5 22. Nd3 Ne4 23. dxc5 bxc5 {1-0 (32) Vidit,S (2651)-Almasi,Z (2689) Berlin 2015}) 17. Rfc1 {[%emt 1:30:08]} c5 {[%emt 0:00:17]} 18. Rd1 {[%emt 0:00:00]} Qe7 {[%emt 0:01:41]} 19. a4 {[%emt 0:00:00]} Ng4 {[%emt 0:02:58]} 20. Nf1 {[%emt 0:00:00]} a5 {[%emt 0:06:09]} 21. Bb5 {[%emt 0:00:00]} Rad8 {[%emt 0:06:03]} (21... Red8 $14) 22. Bc3 {[%emt 0:00:00]} (22. dxc5 $16 bxc5 23. Qd2) 22... Ra8 {[%emt 0:05:33]} 23. Qe1 {[%emt 0:00:00]} Rec8 {[%emt 0:02:20]} 24. Bxd7 {[%emt 0:00:00]} Qxd7 {[%emt 0:00:10]} 25. h3 {[%emt 0:00:00]} Nh6 {[%emt 0:03:39]} (25... Nf6 {is more complex.} 26. dxc5 Rxc5 27. Rdc1 Rac8) 26. e4 {[%emt 0:00:00]} dxe4 {[%emt 0:13:37]} 27. dxc5 {[%emt 0:00:00]} Rxc5 {[%emt 0:00:20]} 28. Ne5 {[%emt 0:00:00]} Qe6 {[%emt 0:02:11]} 29. Nc4 $36 {[%emt 0:00:00][%mdl 2048] White has good play.} Bc7 {[%emt 0:01:13]} 30. Bd4 {[%emt 0:00:00]} Rc6 {[%emt 0:00:46]} 31. Re2 {[%emt 0:07:00]} Re8 {[%emt 0:00:18]} 32. Nfd2 {[%emt 0:00:00][%cal Rd2e4]} Rc5 $2 {[%emt 0:02:40]} 33. Bxc5 {[%emt 0:00:00]} bxc5 {[%emt 0:00:02] [#]} 34. Nxe4 $1 {[%emt 0:00:00][%mdl 512]} Bxe4 {[%emt 0:00:16]} 35. f3 {[%emt 0:00:00][%cal Re2e4]} Bc2 {[%emt 0:04:22]} 36. Rxe6 {[%emt 0:00:00] Really sharp!} (36. Rdd2 $18 Bxb3 37. Rxe6 Rxe6 38. Qc1) 36... Rxe6 $11 {[%emt 0:00:08]} 37. Qxe6 {[%emt 0:00:00]} fxe6 {[%emt 0:00:05]} 38. Rd7 {[%emt 0:00:00]} Bf4 {[%emt 0:04:46]} (38... Bxb3 $2 39. Nd2 Bb6 40. Rb7 (40. Nxb3 c4+ 41. Kf1 cxb3 $17) 40... Bxa4 41. Rxb6 $18) 39. Nxa5 {[%emt 0:00:00]} Nf5 {[%emt 0:01:24]} 40. g4 {[%emt 0:00:00]} Nd4 {[%emt 0:00:21]} 41. Kf2 {[%emt 0:00:00]} Kf8 {[%emt 0:07:21]} 42. Nb7 {[%emt 0:00:00]} Ke8 {[%emt 0:00:45]} (42... Bxb3 43. Nxc5 Bd5 44. Nxe6+ $1 Bxe6 45. Rxd4 $14) (42... Nxb3 43. a5 Nxa5 44. Nxa5 $16) 43. Rd8+ {[%emt 0:00:00]} (43. Nxc5 Nxb3 44. Rd8+ Kxd8 $17) 43... Ke7 {[%emt 0:00:15] Threatening ...hxg4.} 44. a5 {[%emt 0:00:00] Strongly threatening Rh8.} Bd3 {[%emt 0:00:44]} (44... Nxb3 $2 45. a6 Bc7 {[#]} 46. a7 $1 {[%mdl 512]} Bxd8 47. a8=Q $18) 45. Ra8 {[%emt 0:00:00]} Nc2 {[%emt 0:06:38]} ({Don't take} 45... Nxb3 46. a6 Bxa6 47. Rxa6 $16) (45... hxg4 $11 {keeps the balance.} 46. hxg4 c4) 46. gxh5 {[%emt 0:00:00]} (46. a6 $16 Be3+ 47. Kg3 h4+ 48. Kh2 (48. Kxh4 Bf4 $11)) 46... gxh5 $2 {[%emt 0:00:11] Black cannot hold the game after this.} ({Weaker is} 46... Be3+ 47. Kg3 $18) ({Black should play} 46... c4 $1 $14 47. bxc4 gxh5) 47. a6 $18 {[%emt 0:00:00] aiming for a7.} h4 $2 {[%emt 0:02:18]} (47... Be3+ 48. Kg3 Bxa6) 48. a7 {[%emt 0:00:00]} Be3+ {[%emt 0:00:14]} 49. Kg2 {[%emt 0:00:00]} Ne1+ {[%emt 0:00:13]} 50. Kh1 {[%emt 0:00:00]} Be2 {[%emt 0:01:02] [#]} 51. Re8+ $3 {[%emt 0:00:00][%mdl 576] Decoy, Clearance, Promotion} Kxe8 {[%emt 0:00:26]} 52. a8=Q+ {[%emt 0:00:00]} Kf7 {[%emt 0:00:48]} 53. Qa4 {[%emt 0:00:00]} Bxf3+ {[%emt 0:01:26]} 54. Kh2 {[%emt 0:00:00] Black must now prevent Nd8+.} Bd5 {[%emt 0:01:15]} 55. Nd6+ {[%emt 0:00:00]} Ke7 {[%emt 0:02:20] ( -> ...Nf3+)} 56. Qxh4+ {[%emt 0:00:00]} Kd7 {[%emt 0:00:03] And now ...Nf3+ would win.} 57. Qxe1 {[%emt 0:00:00]} Bf4+ {[%emt 0:00:02]} 58. Kg1 {[%emt 0:00:00]} Kxd6 {[%emt 0:00:08]} 59. Qh4 {[%emt 0:00:00]} Be3+ {[%emt 0:00:45]} 60. Kf1 {[%emt 0:00:00] Qg3+ is the strong threat.} Bd4 {[%emt 0:00:09]} 61. Qd8+ {[%emt 0:00:00]} Ke5 {[%emt 0:00:04]} 62. h4 {[%emt 0:00:00]} Ke4 {[%emt 0:00:25]} 63. h5 {[%emt 0:00:00]} Bxb3 {[%emt 0:02:05]} 64. h6 {[%emt 0:00:00] White wants to mate with h7.} c4 {[%emt 0:00:53]} 65. h7 {[%emt 0:00:00]} c3 {[%emt 0:00:12]} 66. h8=Q {[%emt 0:00:00]} Bxh8 {[%emt 0:00:04]} 67. Qxh8 {[%emt 0:00:00]} Kd3 {[%emt 0:00:02]} 68. Ke1 {[%emt 0:00:00]} (68. Qh3+ $142 Kc2 69. Qe3 Bc4+ 70. Ke1 Kb2 71. Qd4 Kb3 72. Kd1 c2+ 73. Kd2) 68... Kc2 {[%emt 0:00:05]} 69. Qd4 {[%emt 0:00:00] White mates.} Bd5 {[%emt 0:00:17]} 70. Ke2 {[%emt 0:00:00]} Bb3 {[%emt 0:00:10]} 71. Ke3 {[%emt 0:00:00]} Bd5 {[%emt 0:00:26]} 72. Qc5 {[%emt 0:00:00] Weighted Error Value: White=0.23 (precise) /Black=0.35} 1-0

[Event "New York Spring GM-A 2022"]
[Site "New York"]
[Date "2022.04.18"]
[Round "7.4"]
[White "Liang, Jason"]
[Black "Barbosa, Oliver"]
[Result "1/2-1/2"]
[ECO "B12"]
[WhiteElo "2419"]
[BlackElo "2505"]
[Annotator "TA"]
[PlyCount "51"]
[EventDate "2022.04.14"]
[EventType "tourn"]
[EventCountry "USA"]
[SourceTitle "playchess.com"]
[Source "ChessBase"]
[SourceQuality "1"]
[TimeControl "5400+30"]

{[%evp 10,51,22,10,25,32,43,42,41,16,31,27,43,27,29,20,61,59,54,47,52,43,46,46,44,31,49,20,20,24,26,22,18,26,34,25,28,12,27,24,16,12,9,19]} 1. e4 {[%emt 0:00:03]} c6 {[%emt 0:00:07]} 2. d4 {[%emt 0:00:07]} d5 {[%emt 0:00:06]} 3. e5 {[%emt 0:00:12]} Bf5 {[%emt 0:00:26]} 4. Nd2 {[%emt 0:00:11]} e6 {[%emt 0:00:11]} 5. Nb3 {[%emt 0:00:06]} Nd7 {[%emt 0:01:13]} 6. Nf3 {[%emt 0:00:13]} Ne7 {[%emt 0:00:53] B12: Caro-Kann: Advance Variation.} 7. Be2 {[%emt 0:00:14]} a6 {[%emt 0:01:02]} 8. O-O {[%emt 0:00:27]} Bg6 {[%emt 0:00:19] White is slightly better.} 9. a4 {[%emt 0:03:03]} Qc7 {[%emt 0:03:44] [#]} 10. Bd2 $146 {[%emt 0:02:37]} ({Predecessor:} 10. a5 c5 11. Nxc5 Nxc5 12. dxc5 Nc6 13. Be3 Be7 14. Qd2 O-O 15. b4 Nxe5 16. Bf4 {1-0 (56) Azarov,S (2582)-Kononenko,D (2255) Minsk 2017}) 10... Nc8 {[%emt 0:31:03]} 11. a5 {[%emt 0:07:02]} Be7 {[%emt 0:00:44]} 12. c4 {[%emt 0:00:20]} dxc4 {[%emt 0:00:22]} 13. Bxc4 {[%emt 0:00:06]} O-O {[%emt 0:01:18]} 14. Qe2 {[%emt 0:01:29]} (14. Ng5 {feels hotter.} Qd8 15. Bxe6 Nxe5 16. dxe5 Bxg5 17. Bxg5 Qxg5 18. f4) 14... Na7 {[%emt 0:00:34]} 15. Rac1 {[%emt 0:00:25]} Qd8 {[%emt 0:03:34]} 16. h3 {[%emt 0:04:53]} Nb5 {[%emt 0:00:49]} 17. Ne1 {[%emt 0:09:40][%cal Bf3e1,Be1d3,Bd3b4][%mdl 32]} Nc7 {[%emt 0:00:44]} 18. Bd3 {[%emt 0:02:00]} Bxd3 {[%emt 0:04:53]} 19. Nxd3 {[%emt 0:00:07]} Re8 {[%emt 0:00:49]} 20. Bb4 {[%emt 0:19:13]} Bxb4 {[%emt 0:04:57]} 21. Nxb4 {[%emt 0:00:07]} Nb5 {[%emt 0:00:39]} 22. Rfd1 {[%emt 0:01:12]} Nf8 {[%emt 0:04:04][%cal Bd7f8,Bf8g6,Bg6e7][%mdl 32]} 23. Qe4 {[%emt 0:01:18]} Ng6 {[%emt 0:04:08]} 24. g3 {[%emt 0:04:33]} Ne7 {[%emt 0:00:59]} 25. Rc5 {[%emt 0:01:47]} Rc8 {[%emt 0:01:03]} 26. Nc2 {[%emt 0:07:45] Weighted Error Value: White=0.07 (flawless) /Black=0.06 (flawless)} 1/2-1/2